bitfinex/quotes_BTCUSD_20251219
["timestamp","ask_amount","ask_price","bid_price","bid_amount"]
[1766179794790,0.33597,88080.0,88069.0,0.00568]
[1766179795003,0.33029,88075.0,88068.0,0.00568]
[1766179795584,0.33029,88075.0,88063.0,0.0113555]
[1766179795823,0.33029,88075.0,88066.0,0.01135512]
[1766179796031,0.33029,88075.0,88067.0,0.00568]
[1766179796538,0.00568,88081.0,88069.0,0.36055]
[1766179798494,0.00568,88081.0,88070.0,0.0113546]
[1766179798750,0.00568,88081.0,88073.0,0.01135421]
[1766179799076,0.00568,88081.0,88072.0,0.01135434]
[1766179799195,0.00568,88081.0,88073.0,0.01135421]
[1766179799816,0.38551,88101.0,88089.0,0.01135215]
[1766179800041,0.03410681,88101.0,88091.0,0.85777]
[1766179800233,0.34003,88106.0,88095.0,0.36055]
[1766179800234,0.02449708,88106.0,88095.0,0.36055]
[1766179800441,0.03410491,88111.0,88097.0,0.36055]
[1766179800589,0.00568,88110.0,88097.0,0.36055]
[1766179800791,0.35139,88110.0,88097.0,0.36055]
[1766179801821,0.35139,88110.0,88097.0,0.37190112]
[1766179802028,0.35139,88110.0,88099.0,0.01135086]
[1766179802230,0.35139,88110.0,88097.0,0.37190112]
[1766179802435,0.35139,88110.0,88098.0,0.01135099]
[1766179802637,0.35139,88110.0,88099.0,0.01135086]
[1766179802958,0.35139,88110.0,88098.0,0.01135099]
[1766179802959,0.34571,88110.0,88100.0,0.01135073]
[1766179803124,0.00568,88109.0,88100.0,0.01135073]
[1766179803311,0.34571,88110.0,88100.0,0.01135073]
[1766179803653,0.00568,88109.0,88099.0,0.01135086]
[1766179804447,0.35139,88109.0,88097.0,0.36055]
[1766179804599,0.35139,88109.0,88097.0,0.37190112]
[1766179805052,0.35139,88109.0,88097.0,0.36055]
[1766179805896,0.35139,88109.0,88097.0,0.37190112]
[1766179806077,0.35139,88109.0,88099.0,0.01135086]
[1766179806280,0.35139,88109.0,88098.0,0.01135099]
[1766179807127,0.35139,88109.0,88099.0,0.01135086]
[1766179808842,0.35139,88109.0,88100.0,0.01135073]
[1766179809246,0.35139,88109.0,88101.0,0.0113506]
[1766179810146,0.34571,88109.0,88102.0,0.01135048]
[1766179810324,0.00568,88108.0,88104.0,0.01135022]
[1766179810531,0.00568,88107.0,88104.0,0.01135022]
[1766179810754,0.34571,88113.0,88104.0,0.01135022]
[1766179810987,0.24472683,88136.0,88104.0,0.01135022]
[1766179810988,0.34571,88120.0,88106.0,0.01134996]
[1766179811200,0.39683,88119.0,88104.0,0.38494022]
[1766179811348,0.34571,88120.0,88106.0,0.01134996]
[1766179811530,0.0454493,88124.0,88105.0,0.01135009]
[1766179811531,0.34571,88117.0,88105.0,0.01135009]
[1766179811755,0.35139,88116.0,88106.0,0.01134996]
[1766179811964,0.34571,88116.0,88106.0,0.01134996]
[1766179812407,0.34571,88116.0,88107.0,0.01134983]
[1766179812635,0.00568,88115.0,88108.0,0.0113497]
[1766179812839,0.34571,88116.0,88108.0,0.0113497]
[1766179813055,0.34571,88116.0,88110.0,0.01134944]
[1766179813270,0.00568,88115.0,88110.0,0.01134944]
[1766179813484,0.00568,88115.0,88109.0,0.01134957]
[1766179813485,0.00568,88114.0,88109.0,0.01134957]
[1766179813728,0.34571,88116.0,88111.0,0.01134932]
[1766179813935,0.4861,88124.0,88113.0,0.01134906]
[1766179814136,0.00568,88123.0,88115.0,0.0113488]
[1766179814343,0.00568,88123.0,88115.0,0.37359]
[1766179814771,0.00568,88123.0,88113.0,0.47833906]
[1766179815195,0.00568,88123.0,88113.0,0.46699]
[1766179815394,0.00568,88123.0,88114.0,0.84058]
[1766179815652,0.05674132,88120.0,88101.0,0.37359]
[1766179815803,0.01134803,88121.0,88101.0,0.37359]
[1766179815804,0.01361061,88111.0,88101.0,0.37359]
[1766179816103,0.00568,88110.0,88101.0,0.37359]
[1766179816804,0.00568,88110.0,88098.0,0.48402099]
[1766179817080,0.00568,88110.0,88097.0,0.06810671]
[1766179817081,0.13825,88106.0,88094.0,0.00568]
[1766179817297,0.34571,88105.0,88094.0,0.01703151]
[1766179817461,0.34571,88105.0,88096.0,0.01135125]
[1766179817664,0.00568,88104.0,88094.0,0.01703151]
[1766179817866,0.00568,88104.0,88094.0,0.00568]
[1766179818227,0.36500061,88104.0,88093.0,0.46699]
[1766179818423,0.36500061,88104.0,88093.0,0.47834163]
[1766179818652,0.36500061,88104.0,88094.0,0.01135151]
[1766179818932,0.36500061,88104.0,88093.0,0.46699]
[1766179819469,0.36500061,88104.0,88093.0,0.47834163]
[1766179819604,0.36500061,88104.0,88095.0,0.01135138]
[1766179820002,0.36500061,88104.0,88094.0,0.38378151]
[1766179822817,0.36500061,88104.0,88094.0,0.37243]
[1766179823636,0.34571,88117.0,88105.0,0.01135009]
[1766179823836,0.00568,88116.0,88107.0,0.01134983]
[1766179824027,0.00568,88116.0,88108.0,0.0113497]
[1766179824278,0.00568,88116.0,88108.0,0.3837797]
[1766179824480,0.00568,88116.0,88109.0,0.8234]
[1766179827376,0.00568,88116.0,88109.0,0.45097]
[1766179831387,0.00568,88116.0,88105.0,0.37243]
[1766179834520,0.00568,88116.0,88105.0,0.38378009]
[1766179834722,0.00568,88116.0,88105.0,0.37243]
[1766179835055,0.00568,88116.0,88106.0,0.01134996]
[1766179835260,0.00568,88116.0,88110.0,0.01134944]
[1766179835433,0.00568,88116.0,88110.0,0.37141944]
[1766179835735,0.00568,88116.0,88111.0,0.36007]
[1766179835957,0.00568,88115.0,88112.0,0.36007]
[1766179836279,0.00568,88116.0,88113.0,0.01134906]
[1766179837053,0.00568,88116.0,88113.0,0.36007]
[1766179837279,0.00568,88116.0,88113.0,0.37141906]
[1766179837669,0.00568,88116.0,88113.0,0.36007]
[1766179838837,0.00568,88116.0,88111.0,0.48785]
[1766179840347,0.05905061,88127.0,88113.0,0.48785]
[1766179840512,0.00568,88126.0,88115.0,0.36007]
[1766179840694,0.13445,88125.0,88110.0,0.37141944]
[1766179840902,0.13445,88122.0,88108.0,0.48785]
[1766179841181,0.35707,88121.0,88108.0,0.48785]
[1766179841421,0.35707,88121.0,88109.0,0.01134957]
[1766179842247,0.00568,88120.0,88109.0,0.01134957]
[1766179842592,0.00568,88120.0,88108.0,0.84792]
[1766179844763,0.00568,88120.0,88109.0,0.36007]
[1766179844977,0.35707,88121.0,88110.0,0.36007]
[1766179844978,0.00568,88119.0,88110.0,0.36007]
[1766179845229,0.00568,88119.0,88111.0,0.01134932]
[1766179845230,0.00068,88119.0,88111.0,0.01134932]
[1766179845454,0.00568,88120.0,88109.0,0.06809687]
[1766179845654,0.00568,88120.0,88112.0,0.01134919]
[1766179845855,0.00568,88120.0,88113.0,0.01134906]
[1766179846057,0.00568,88120.0,88115.0,0.36007]
[1766179846454,0.00568,88120.0,88115.0,0.3714188]
[1766179846737,0.00568,88121.0,88115.0,0.36007]
[1766179847371,0.00568,88121.0,88114.0,0.48785]
[1766179848201,0.39184654,88133.0,88117.0,0.01134854]
[1766179848377,0.04544,88131.0,88119.0,0.01134829]
[1766179848577,0.00568,88130.0,88122.0,0.36007]
[1766179848777,0.00568,88130.0,88122.0,0.84792]
[1766179849308,0.00568,88130.0,88118.0,0.05674151]
[1766179849309,0.35775,88142.0,88129.0,0.36007]
[1766179849468,0.00568,88141.0,88129.0,0.36007]
[1766179849669,0.35775,88138.0,88123.0,0.36007]
[1766179849993,0.01134584,88138.0,88124.0,0.84792]
[1766179850237,0.01134597,88137.0,88119.0,0.00568]
[1766179850413,0.01134623,88135.0,88121.0,0.84792]
[1766179850737,0.00568,88134.0,88121.0,0.84792]
[1766179851897,0.00568,88134.0,88123.0,0.01134777]
[1766179852130,0.00568,88134.0,88126.0,0.36007]
[1766179852518,0.00568,88134.0,88125.0,0.48785]
[1766179853869,0.00568,88136.0,88130.0,0.36007]
[1766179854232,0.01134558,88143.0,88132.0,0.84792]
[1766179854410,0.00568,88142.0,88132.0,0.84792]
[1766179855802,0.00568,88142.0,88133.0,0.36007]
[1766179856014,0.00568,88142.0,88133.0,0.84792]
[1766179856210,0.00568,88142.0,88134.0,0.36007]
[1766179857762,0.00568,88142.0,88134.0,0.84792]
[1766179857908,0.00568,88142.0,88135.0,0.36007]
[1766179859195,0.00568,88142.0,88135.0,0.35945259]
[1766179860387,0.00568,88142.0,88130.0,0.01134687]
[1766179860388,0.00568,88150.0,88141.0,0.05672724]
[1766179860592,0.00568,88150.0,88142.0,0.48785]
[1766179861370,0.00568,88150.0,88143.0,0.36007]
[1766179863993,0.13672,88169.0,88149.0,0.48785]
[1766179864187,0.00568,88172.0,88159.0,0.4766]
[1766179864400,0.00568,88172.0,88163.0,0.34534]
[1766179864574,0.00568,88172.0,88163.0,0.82194]
[1766179864575,0.01702146,88172.0,88163.0,0.82194]
[1766179864749,0.01134159,88171.0,88163.0,0.82194]
[1766179865093,0.00568,88172.0,88163.0,0.82194]
[1766179865496,0.01134159,88171.0,88163.0,0.82194]
[1766179865821,0.01702146,88172.0,88163.0,0.82194]
[1766179866017,0.00568,88172.0,88163.0,0.82194]
[1766179866287,0.01702146,88172.0,88163.0,0.4766]
[1766179866479,0.01134198,88168.0,88155.0,0.4766]
[1766179866694,0.01134211,88167.0,88155.0,0.82194]
[1766179867123,0.39974301,88160.0,88147.0,0.34534]
[1766179867329,0.39974301,88160.0,88146.0,0.4766]
[1766179867330,0.13537,88146.0,88129.0,0.4766]
[1766179867548,0.39408,88145.0,88129.0,0.82762]
[1766179867758,0.39408,88145.0,88130.0,0.37942751]
[1766179867907,0.39408,88145.0,88131.0,0.34534]
[1766179868114,0.39408,88145.0,88132.0,0.48794661]
[1766179868320,0.00568,88145.0,88135.0,0.34534]
[1766179870924,0.00568,88145.0,88135.0,0.35668623]
[1766179871123,0.00568,88145.0,88135.0,0.34534]
[1766179871732,0.00568,88146.0,88140.0,0.4766]
[1766179871937,0.00568,88153.0,88146.0,0.4766]
[1766179872138,0.00568,88153.0,88147.0,0.34534]
[1766179873450,0.00568,88153.0,88149.0,0.34534]
[1766179873669,0.00568,88155.0,88149.0,0.82194]
[1766179875939,0.00568,88155.0,88150.0,0.82194]
[1766179877937,0.00568,88155.0,88150.0,0.4766]
[1766179878134,0.00568,88155.0,88141.0,0.82194]
[1766179878135,0.40544,88154.0,88141.0,0.82194]
[1766179878489,0.41678378,88154.0,88141.0,0.82194]
[1766179878918,0.01702365,88155.0,88135.0,0.09081407]
[1766179878919,0.41678481,88146.0,88135.0,0.03408356]
[1766179879129,0.41678494,88145.0,88133.0,0.00568]
[1766179879327,0.01134507,88144.0,88132.0,0.00568]
[1766179879527,0.01134507,88144.0,88130.0,0.33444]
[1766179879528,0.01134532,88142.0,88130.0,0.33444]
[1766179879727,0.40544,88136.0,88124.0,0.03408755]
[1766179879882,0.40544,88136.0,88121.0,0.49763]
[1766179879883,0.41678635,88134.0,88121.0,0.50331]
[1766179880088,0.42246635,88134.0,88121.0,0.50331]
[1766179881978,0.001099,88121.0,88105.0,0.33444]
[1766179882071,0.40544,88120.0,88105.0,0.34579009]
[1766179882288,0.41112,88120.0,88107.0,0.33444]
[1766179882511,0.41112,88120.0,88107.0,0.34578983]
[1766179882735,0.41112,88120.0,88111.0,0.01134932]
[1766179882957,0.41112,88120.0,88109.0,0.33444]
[1766179883807,0.41112,88120.0,88108.0,0.49763]
[1766179884027,0.001099,88109.0,88099.0,0.49763]
[1766179884232,0.001099,88109.0,88100.0,0.00568]
[1766179884436,0.41112,88114.0,88102.0,0.01135048]
[1766179884848,0.41112,88114.0,88103.0,0.01135035]
[1766179885205,0.41112,88114.0,88102.0,0.01135048]
[1766179885638,0.41112,88114.0,88103.0,0.01135035]
[1766179886019,0.41112,88114.0,88104.0,0.01135022]
[1766179886214,0.41112,88114.0,88103.0,0.01135035]
[1766179886642,0.41112,88114.0,88101.0,0.3514706]
[1766179886818,0.41112,88114.0,88101.0,0.34012]
[1766179887020,0.41112,88114.0,88102.0,0.01135048]
[1766179887228,0.41112,88114.0,88103.0,0.01135035]
[1766179887430,0.41112,88114.0,88105.0,0.01135009]
[1766179887649,0.41112,88114.0,88106.0,0.01134996]
[1766179887851,0.41112,88114.0,88102.0,0.00568]
[1766179888053,0.41112,88114.0,88105.0,0.01135009]
[1766179888290,0.41112,88114.0,88103.0,0.33444]
[1766179888447,0.41112,88114.0,88104.0,0.01135022]
[1766179888644,0.41112,88114.0,88106.0,0.01134996]
[1766179889570,0.41112,88114.0,88105.0,0.01135009]
[1766179890166,0.41112,88114.0,88106.0,0.01134996]
[1766179890338,0.41112,88114.0,88105.0,0.01135009]
[1766179890534,0.41112,88114.0,88106.0,0.01134996]
[1766179890735,0.00568,88114.0,88106.0,0.34578996]
[1766179890930,0.00568,88114.0,88108.0,0.33444]
[1766179891181,0.00568,88114.0,88109.0,0.01134957]
[1766179891391,0.00568,88114.0,88108.0,0.3457897]
[1766179891774,0.00568,88114.0,88109.0,0.01134957]
[1766179892132,0.00568,88114.0,88110.0,0.01134944]
[1766179892320,0.00568,88114.0,88109.0,0.01134957]
[1766179892683,0.00568,88114.0,88110.0,0.01134944]
[1766179892890,0.00568,88114.0,88109.0,0.01134957]
[1766179893426,0.00568,88114.0,88108.0,0.3457897]
[1766179893774,0.00568,88114.0,88108.0,0.33444]
[1766179893954,0.00568,88114.0,88109.0,0.01134957]
[1766179894423,0.00568,88114.0,88110.0,0.01134944]
[1766179894856,0.40544,88123.0,88110.0,0.01134944]
[1766179894857,0.00568,88117.0,88114.0,0.01134893]
[1766179895064,0.01134507,88144.0,88124.0,0.82546]
[1766179895237,0.00568,88139.0,88126.0,0.82546]
[1766179895441,0.03409402,88132.0,88126.0,0.82546]
[1766179895818,0.00568,88139.0,88126.0,0.82546]
[1766179896362,0.41112,88139.0,88127.0,0.01134726]
[1766179896750,0.41112,88139.0,88126.0,0.83680738]
[1766179897164,0.41112,88139.0,88126.0,0.82546]
[1766179897584,0.41112,88139.0,88126.0,0.88219686]
[1766179897808,0.41112,88139.0,88126.0,0.83680738]
[1766179898131,0.41112,88139.0,88128.0,0.01134713]
[1766179898322,0.41112,88139.0,88127.0,0.01134726]
[1766179898534,0.41112,88139.0,88128.0,0.01134713]
[1766179898708,0.41112,88139.0,88129.0,0.011347]
[1766179899097,0.41112,88139.0,88127.0,0.01134726]
[1766179899550,0.41112,88139.0,88128.0,0.01134713]
[1766179900145,0.41112,88139.0,88127.0,0.01134726]
[1766179900362,0.40544,88137.0,88123.0,0.36491]
[1766179900555,0.40544,88137.0,88125.0,0.01134751]
[1766179901200,0.40544,88137.0,88126.0,0.01134738]
[1766179901334,0.40544,88137.0,88123.0,0.84248777]
[1766179901519,0.40544,88137.0,88125.0,0.01134751]
[1766179902348,0.40544,88137.0,88126.0,0.01134738]
[1766179902778,0.40544,88137.0,88124.0,0.37057764]
[1766179902979,0.40544,88137.0,88126.0,0.01134738]
[1766179903924,0.40544,88137.0,88124.0,0.37057764]
[1766179904281,0.40544,88137.0,88126.0,0.01134738]
[1766179904502,0.40544,88137.0,88125.0,0.01134751]
[1766179905318,0.40544,88137.0,88124.0,0.37057764]
[1766179905623,0.40544,88137.0,88124.0,0.35923]
[1766179905954,0.001099,88124.0,88123.0,0.00568]
[1766179906165,0.001099,88124.0,88119.0,0.00568]
[1766179906546,0.40544,88129.0,88119.0,0.00568]
[1766179906762,0.40544,88129.0,88119.0,0.36491]
[1766179907089,0.40544,88129.0,88121.0,0.01134803]
[1766179907309,0.00568,88131.0,88122.0,0.0113479]
[1766179907747,0.00568,88131.0,88121.0,0.01134803]
[1766179908125,0.00568,88131.0,88122.0,0.0113479]
[1766179908343,0.00568,88131.0,88120.0,0.35923]
[1766179910400,0.00568,88131.0,88121.0,0.37057803]
[1766179910539,0.00568,88131.0,88123.0,0.35923]
[1766179910722,0.00568,88131.0,88123.0,0.82546]
[1766179911166,0.00568,88131.0,88124.0,0.37057764]
[1766179911428,0.00568,88131.0,88124.0,0.35923]
[1766179912417,0.00568,88131.0,88125.0,0.01134751]
[1766179912623,0.00568,88131.0,88124.0,0.37057764]
[1766179912827,0.00568,88131.0,88124.0,0.35923]
[1766179913746,0.00568,88131.0,88124.0,0.37057764]
[1766179913904,0.00568,88131.0,88126.0,0.01134738]
[1766179914105,0.00568,88131.0,88127.0,0.01134726]
[1766179914882,0.39976,88147.0,88132.0,0.82546]
[1766179915090,0.39976,88147.0,88124.0,0.22695272]
[1766179915091,0.00568,88146.0,88135.0,0.01134623]
[1766179915294,0.00568,88146.0,88134.0,0.82546]
[1766179915507,0.40544,88146.0,88134.0,0.82546]
[1766179915716,0.40544,88146.0,88134.0,0.83680635]
[1766179916115,0.40544,88146.0,88135.0,0.01134623]
[1766179916400,0.40544,88146.0,88136.0,0.0113461]
[1766179916637,0.40544,88146.0,88135.0,0.37057623]
[1766179917242,0.40544,88146.0,88136.0,0.0113461]
[1766179917599,0.40544,88146.0,88135.0,0.37057623]
[1766179918636,0.40544,88146.0,88136.0,0.0113461]
[1766179919210,0.40544,88146.0,88137.0,0.01134597]
[1766179919771,0.00568,88146.0,88138.0,0.01134584]
[1766179919980,0.00568,88146.0,88137.0,0.46623]
[1766179920170,0.00568,88145.0,88138.0,0.35923]
[1766179920546,0.39976,88152.0,88140.0,0.35923]
[1766179920748,0.00568,88151.0,88142.0,0.35923]
[1766179921164,0.03055076,88167.0,88147.0,0.37057468]
[1766179921379,0.00568,88166.0,88153.0,0.35923]
[1766179921541,0.00568,88166.0,88152.0,0.46623]
[1766179921740,0.41110249,88164.0,88152.0,0.46623]
[1766179921981,0.39976,88162.0,88146.0,0.47757481]
[1766179922185,0.00568,88161.0,88148.0,0.35923]
[1766179922498,0.40544,88161.0,88148.0,0.37057455]
[1766179923076,0.40544,88161.0,88150.0,0.01134429]
[1766179923280,0.40544,88161.0,88149.0,0.01134442]
[1766179923281,0.40544,88161.0,88151.0,0.01134417]
[1766179923638,0.40544,88161.0,88150.0,0.37057429]
[1766179924974,0.40544,88161.0,88150.0,0.35923]
[1766179925629,0.40544,88161.0,88151.0,0.01134417]
[1766179925841,0.40544,88161.0,88152.0,0.01134404]
[1766179926046,0.00568,88161.0,88155.0,0.01134365]
[1766179926689,0.00568,88161.0,88154.0,0.01134378]
[1766179927015,0.00568,88161.0,88152.0,0.9035242]
[1766179927255,0.00568,88161.0,88155.0,0.01134365]
[1766179927438,0.00568,88161.0,88157.0,0.01134339]
[1766179927874,0.00568,88161.0,88155.0,0.01134365]
[1766179928074,0.00568,88161.0,88153.0,0.01134391]
[1766179928460,0.00568,88161.0,88152.0,0.84680404]
[1766179928668,0.00568,88161.0,88152.0,0.83546]
[1766179928848,0.00568,88161.0,88153.0,0.01134391]
[1766179929190,0.01134134,88173.0,88154.0,0.01134378]
[1766179929191,0.10782,88173.0,88154.0,0.01134378]
[1766179929348,0.39976,88165.0,88154.0,0.01134378]
[1766179929554,0.00568,88164.0,88154.0,0.01134378]
[1766179929781,0.00568,88164.0,88157.0,0.36320339]
[1766179930015,0.00568,88164.0,88157.0,0.35186]
[1766179930221,0.00568,88164.0,88154.0,0.4836]
[1766179930222,0.001099,88157.0,88154.0,0.4836]
[1766179930550,0.001099,88157.0,88151.0,0.35186]
[1766179930754,0.40544,88164.0,88151.0,0.35186]
[1766179930932,0.39976,88162.0,88147.0,0.01134468]
[1766179931106,0.39976,88158.0,88145.0,0.01134494]
[1766179931306,0.39976,88158.0,88144.0,0.00568]
[1766179931307,0.40544,88157.0,88144.0,0.01702507]
[1766179932031,0.40544,88157.0,88145.0,0.01134494]
[1766179932620,0.40544,88157.0,88141.0,0.49494545]
[1766179932621,0.001099,88145.0,88141.0,0.49494545]
[1766179932823,0.40544,88151.0,88141.0,0.01134545]
[1766179933345,0.39976,88151.0,88143.0,0.0113452]
[1766179934160,0.39976,88151.0,88144.0,0.01134507]
[1766179934366,0.39976,88151.0,88143.0,0.0113452]
[1766179934527,0.39976,88151.0,88144.0,0.01134507]
[1766179934753,0.39976,88151.0,88143.0,0.0113452]
[1766179935215,0.39976,88151.0,88144.0,0.01134507]
[1766179935663,0.00568,88156.0,88143.0,0.0113452]
[1766179935845,0.00568,88156.0,88143.0,0.3632052]
[1766179936406,0.00568,88156.0,88144.0,0.01134507]
[1766179936765,0.00568,88156.0,88143.0,0.3632052]
[1766179936941,0.00568,88156.0,88144.0,0.01134507]
[1766179937751,0.01134108,88175.0,88153.0,0.05671931]
[1766179937973,0.39976,88171.0,88155.0,0.83546]
[1766179938178,0.39976,88171.0,88153.0,0.01702391]
[1766179938179,0.39976,88171.0,88156.0,0.83546]
[1766179939209,0.39976,88170.0,88156.0,0.83546]
[1766179939619,0.39996,88176.0,88161.0,0.46731]
[1766179939796,0.39996,88176.0,88153.0,0.00568]
[1766179939797,0.39976,88172.0,88157.0,0.33998]
[1766179940001,0.001099,88161.0,88153.0,0.00568]
[1766179940257,0.39976,88159.0,88146.0,0.00568]
[1766179940463,0.39976,88156.0,88146.0,0.00568]
[1766179940852,0.39976,88156.0,88147.0,0.01134468]
[1766179941051,0.39976,88156.0,88146.0,0.01702481]
[1766179941828,0.39976,88156.0,88148.0,0.01134455]
[1766179942121,0.39976,88156.0,88146.0,0.35700481]
[1766179942122,0.39976,88156.0,88147.0,0.01134468]
[1766179942983,0.39976,88156.0,88146.0,0.35700481]
[1766179943262,0.39976,88156.0,88147.0,0.01134468]
[1766179944245,0.39976,88156.0,88146.0,0.00568]
[1766179944458,0.10181,88146.0,88132.0,0.01134661]
[1766179944662,0.39976,88145.0,88133.0,0.00568]
[1766179945307,0.39976,88143.0,88133.0,0.00568]
[1766179945513,0.39976,88143.0,88127.0,0.35132726]
[1766179945514,0.001099,88133.0,88126.0,0.00568]
[1766179945743,0.11276571,88139.0,88121.0,0.35132803]
[1766179945744,0.40544,88136.0,88124.0,0.01702764]
[1766179945978,0.40544,88136.0,88125.0,0.01134751]
[1766179946444,0.40544,88136.0,88126.0,0.01134738]
[1766179947474,0.40544,88136.0,88125.0,0.01134751]
[1766179947693,0.40544,88136.0,88126.0,0.01134738]
[1766179948414,0.40544,88136.0,88125.0,0.01134751]
[1766179949334,0.40544,88136.0,88124.0,0.01702764]
[1766179950004,0.40544,88136.0,88124.0,0.35700764]
[1766179950193,0.40544,88136.0,88125.0,0.01134751]
[1766179950397,0.40544,88136.0,88124.0,0.35700764]
[1766179950602,0.40544,88136.0,88125.0,0.01134751]
[1766179950818,0.40544,88136.0,88126.0,0.01134738]
[1766179950985,0.40544,88136.0,88125.0,0.01134751]
[1766179951186,0.40544,88136.0,88126.0,0.01134738]
[1766179951622,0.40544,88136.0,88125.0,0.01134751]
[1766179952038,0.40544,88136.0,88124.0,0.35700764]
[1766179952241,0.40544,88136.0,88124.0,0.34566]
[1766179952442,0.40544,88136.0,88123.0,0.01134777]
[1766179952443,0.39976,88132.0,88118.0,0.47865841]
[1766179952671,0.39976,88130.0,88118.0,0.47865841]
[1766179952812,0.39976,88130.0,88119.0,0.00568]
[1766179953161,0.39976,88130.0,88120.0,0.01702816]
[1766179953355,0.39976,88130.0,88121.0,0.01134803]
[1766179955784,0.39976,88130.0,88122.0,0.0113479]
[1766179956140,0.39976,88130.0,88121.0,0.01134803]
[1766179956314,0.39976,88130.0,88120.0,0.01702816]
[1766179956831,0.39976,88130.0,88121.0,0.01134803]
[1766179957030,0.39976,88130.0,88122.0,0.0113479]
[1766179958301,0.09839,88135.0,88122.0,0.0113479]
[1766179958494,0.39976,88134.0,88122.0,0.0113479]
[1766179958761,0.39976,88134.0,88122.0,0.0170279]
[1766179960512,0.39976,88134.0,88122.0,0.00568]
[1766179960773,0.39976,88134.0,88122.0,0.0170279]
[1766179960955,0.39976,88134.0,88124.0,0.01134764]
[1766179961362,0.39976,88134.0,88123.0,0.01134777]
[1766179961567,0.39976,88134.0,88124.0,0.01134764]
[1766179961774,0.39976,88134.0,88125.0,0.01134751]
[1766179961978,0.39976,88134.0,88127.0,0.01134726]
[1766179962181,0.39976,88134.0,88126.0,0.01134738]
[1766179962394,0.39976,88134.0,88125.0,0.01134751]
[1766179962838,0.39976,88134.0,88124.0,0.01134764]
[1766179963197,0.39976,88134.0,88125.0,0.01134751]
[1766179964394,0.39976,88134.0,88126.0,0.01134738]
[1766179965764,0.39976,88134.0,88125.0,0.01134751]
[1766179965965,0.39976,88134.0,88126.0,0.01134738]
[1766179966181,0.39976,88134.0,88125.0,0.01134751]
[1766179966696,0.39976,88134.0,88126.0,0.01134738]
[1766179967098,0.39976,88134.0,88125.0,0.01134751]
[1766179967502,0.00568,88136.0,88125.0,0.01134751]
[1766179967709,0.00568,88136.0,88126.0,0.31859]
[1766179967910,0.40544,88136.0,88125.0,0.49372751]
[1766179968464,0.40544,88136.0,88125.0,0.48238]
[1766179969017,0.001099,88125.0,88122.0,0.00568]
[1766179969563,0.39976,88133.0,88122.0,0.00568]
[1766179970529,0.49189,88133.0,88122.0,0.00568]
[1766179972337,0.39976,88133.0,88122.0,0.0170279]
[1766179973837,0.39976,88133.0,88123.0,0.01134777]
[1766179974920,0.39976,88133.0,88122.0,0.0170279]
[1766179975921,0.39976,88133.0,88122.0,0.00568]
[1766179975922,0.48978,88133.0,88122.0,0.00568]
[1766179977285,0.39976,88133.0,88122.0,0.00568]
[1766179977489,0.39976,88121.0,88113.0,0.00568]
[1766179978538,0.00568,88124.0,88113.0,0.32427]
[1766179978709,0.00568,88124.0,88116.0,0.01134867]
[1766179980232,0.00568,88124.0,88117.0,0.01134854]
[1766179980443,0.0113452,88143.0,88117.0,0.01134854]
[1766179980444,0.00568,88134.0,88127.0,0.31859]
[1766179980774,0.00568,88134.0,88123.0,0.00568]
[1766179980775,0.39976,88132.0,88123.0,0.00568]
[1766179981101,0.39976,88132.0,88114.0,0.32993893]
[1766179981102,0.39408,88128.0,88122.0,0.00568]
[1766179981219,0.00568,88134.0,88122.0,0.00568]
[1766179981623,0.00568,88134.0,88125.0,0.48238]
[1766179981903,0.00568,88134.0,88125.0,0.80097]
[1766179982298,0.00568,88134.0,88125.0,0.81231751]
[1766179982503,0.02448907,88139.0,88126.0,0.80097]
[1766179982806,0.00568,88138.0,88126.0,0.80097]
[1766179983356,0.00568,88138.0,88127.0,0.31859]
[1766179983552,0.39408,88138.0,88127.0,0.31859]
[1766179985466,0.08758,88137.0,88122.0,0.0113479]
[1766179985653,0.00568,88138.0,88125.0,0.31608]
[1766179985853,0.39408,88138.0,88125.0,0.31608]
[1766179987196,0.39408,88138.0,88125.0,0.76824]
[1766179987790,0.40542584,88138.0,88125.0,0.76824]
[1766179988055,0.39408,88138.0,88125.0,0.76824]
[1766179988975,0.39408,88138.0,88121.0,0.00568]
[1766179989161,0.39408,88138.0,88124.0,0.31608]
[1766179991355,0.39408,88138.0,88121.0,0.0737679]
[1766179991356,0.00568,88138.0,88128.0,0.46350713]
[1766179991560,0.02449539,88147.0,88134.0,0.31608]
[1766179991850,0.00568,88146.0,88136.0,0.3274261]
[1766179992054,0.00568,88146.0,88139.0,0.76824]
[1766179992764,0.00568,88146.0,88140.0,0.32742558]
[1766179992961,0.00568,88146.0,88141.0,0.76824]
[1766179994412,0.00568,88151.0,88141.0,0.76824]
[1766179995749,0.00568,88151.0,88141.0,0.77958545]
[1766179995928,0.00568,88151.0,88145.0,0.31608]
[1766179997522,0.00568,88151.0,88145.0,0.32742494]
[1766179997861,0.00568,88151.0,88145.0,0.31608]
[1766179998686,0.00568,88151.0,88145.0,0.32742494]
[1766179998958,0.00568,88151.0,88145.0,0.31608]
[1766179999920,0.00568,88161.0,88148.0,0.32002]
[1766180000123,0.39976,88161.0,88148.0,0.32002]
[1766180001746,0.39976,88161.0,88149.0,0.32002]
[1766180001942,0.00568,88161.0,88152.0,0.32002]
[1766180002341,0.39408,88167.0,88156.0,0.32002]
[1766180002342,0.00568,88166.0,88156.0,0.32002]
[1766180003964,0.39408,88167.0,88156.0,0.33136352]
[1766180004367,0.39408,88167.0,88157.0,0.01134339]
[1766180004568,0.39408,88167.0,88156.0,0.33136352]
[1766180004792,0.39408,88167.0,88157.0,0.01134339]
[1766180005197,0.39408,88167.0,88156.0,0.32002]
[1766180005803,0.001099,88156.0,88153.0,0.00568]
[1766180006225,0.46741,88167.0,88153.0,0.00568]
[1766180006622,0.07333,88167.0,88151.0,0.32002]
[1766180006832,0.07267,88147.0,88129.0,0.05673452]
[1766180007145,0.46675,88142.0,88129.0,0.017027]
[1766180007351,0.46675,88142.0,88129.0,0.00568]
[1766180007688,0.39408,88136.0,88118.0,0.01134841]